Cogmind - Beta 15 @@@ ROGUE MODE // 2025.06.06 @ 22:24:12 Player: CL-1C0 Result: Destroyed by P-70 Sage with High-powered Shock Rifle Performance ------------- Evolutions (5) 2500 Regions Visited (5) 1000 Robots Destroyed (39) 195 Value Destroyed (1283) 1283 Prototype IDs (17) 340 Alien Tech Used (0) 0 Bonus (800) 800 TOTAL SCORE: 6118 Bonus ------- Registered with UFD 300 Met Optimus in HQ 500 Cogmind --------- Core Integrity 0/1000 Matter 231/300 Energy 100/100 System Corruption 7% Temperature Cool (0) Movement Core (400) Ox7 Location -5/Factory Parts ------- > --- POWER (1) -------- (None) > --- PROPULSION (6) --- (None) > --- UTILITY (8) ------ Large Storage Unit Advanced Signal Interpreter Targeting Computer Improved Launcher Guidance Computer > --- WEAPON (2) ------- Heavy Assault Rifle > --- INVENTORY (15) --- Huge Storage Unit Advanced ECM Suite A0-MCA's Component Scanner CPS Tube (2) CPS Tube (2) Vortex Trap Vortex Trap DRS Beacon (Ready) Peak State ------------ > --- POWER ------------ Neutrino Core > --- PROPULSION ------- Improved Treads Armored Medium Treads Flexi-carbon Leg Flexi-carbon Leg Cargo Legs > --- UTILITY ---------- Large Storage Unit Advanced Signal Interpreter Targeting Computer Targeting Computer Improved Launcher Guidance Computer Matter Filter Improved Medium Armor Plating Makeshift System Shield > --- WEAPON ----------- KE Penetrator Axe > --- INVENTORY -------- Light Ion Engine Neutrino Core Advanced ECM Suite A0-MCA's Component Scanner Wave Gun Heavy Assault Rifle Gauss Rifle Gauss Rifle CPS Tube CPS Tube CPS Tube Vortex Trap Vortex Trap Vortex Trap DRS Beacon [Rating: 80] Favorites ----------- Power Deuterium Engine Engine Deuterium Engine Power Core Neutrino Core Propulsion Aluminum Leg Treads Spiked Treads Leg Aluminum Leg Wheel Armored Huge Wheel Utility Large Storage Unit Device Disposable Heat Sink Storage Large Storage Unit Processor Targeting Computer Hackware Makeshift System Shield Protection Scrap Shield Weapon Subdweller Beam Cannon Energy Gun Wave Gun Energy Cannon Subdweller Beam Cannon Ballistic Gun Assault Rifle Ballistic Cannon Battle Cannon Launcher Missile Launcher Special Weapon CPS Tube Slashing Weapon Makeshift Axe Build | -11 -10 -10 -7 -7 -5 ------- Run | Yrd Mat Sub Rec Scr Fac Slots Evolved 10 | . . . . . 10 Power . | . . . . . . Propulsion 4 | . . . . . 4 Utility 6 | . . . . . 6 Weapon . | . . . . . . Parts Attached 49 | 1 1 10 4 7 26 Power 5 | . . 2 1 . 2 Engine 3 | . . 2 1 . . Core 2 | . . . . . 2 Reactor . | . . . . . . Propulsion 13 | . . 4 2 1 6 Treads 4 | . . 2 . . 2 Leg 4 | . . . . 1 3 Wheel 5 | . . 2 2 . 1 Hover . | . . . . . . Flight . | . . . . . . Utility 16 | . 1 1 . 4 10 Device 5 | . . 1 . . 4 Storage 2 | . 1 . . 1 . Processor 4 | . . . . . 4 Hackware 2 | . . . . 1 1 Protection 3 | . . . . 2 1 Artifact . | . . . . . . Weapon 15 | 1 . 3 1 2 8 Energy Gun 1 | . . . . . 1 Energy Cannon 3 | . . 2 . 1 . Ballistic Gun 5 | 1 . . . . 4 Ballistic Cannon 1 | . . 1 . . . Launcher 1 | . . . . . 1 Special Weapon 2 | . . . . . 2 Impact Weapon . | . . . . . . Slashing Weapon 2 | . . . 1 1 . Piercing Weapon . | . . . . . . Special Melee Weapon . | . . . . . . Unidentified Prototypes . | . . . . . . Parts Lost 30 | . . 4 . . 26 Power 4 | . . 2 . . 2 Propulsion 8 | . . 1 . . 7 Utility 8 | . . . . . 8 Weapon 10 | . . 1 . . 9 Highest Loss Streak 16 | . . 3 . . 16 To Critical Strikes . | . . . . . . Average Backups 10 | 6 5 9 10 12 7 Power . | 1 1 1 . . . Propulsion 2 | 4 4 4 3 1 . Utility 3 | . . 2 3 5 1 Weapon 2 | 1 . 1 3 3 2 Tool/Special . | . . . . . . Unused Backups 12 | . . 4 1 2 5 Power 2 | . . 1 . . 1 Propulsion 3 | . . 3 . . . Utility 2 | . . . . . 2 Weapon 2 | . . . . 2 . Tool/Special 3 | . . . 1 . 2 Average Slot Usage (%) 78 | . 71 89 83 73 65 Engine 11 | . 14 13 10 13 1 Treads 5 | . . 7 15 . 4 Leg 7 | . 28 12 . 2 9 Wheel 7 | . . 6 9 10 . Device 9 | . . 7 14 11 5 Storage 12 | . 14 14 14 13 5 Processor 2 | . . . . . 16 Hackware 1 | . . . . 1 5 Protection 1 | . . . . 2 3 Energy Cannon 7 | . . 14 14 3 . Ballistic Gun 3 | . 14 6 . . 2 Ballistic Cannon 1 | . . 5 . . . Slashing Weapon 6 | . . . 5 14 3 Peak Build Rating 80 | 5 6 19 25 41 80 Average Rating 24 | 4 5 13 18 27 57 On Entrance 15 | 6 5 5 13 24 39 Naked Turns . | . . . . . . Heaviest Build 71 | 12 27 41 41 71 54 Greatest Support 115 | 20 20 20 40 55 115 Greatest Overweight (x) 9 | . 1 2 1 1 9 Average Overweight (x) . | . . 1 . . . Largest Inventory Capacity 20 | 8 15 15 15 20 15 Average Capacity 15 | 8 14 15 15 17 15 Most Carried 20 | 6 5 15 15 20 15 Average Carried 13 | 5 5 12 14 15 11 Final Capacity 15 | 8 15 15 15 15 15 Final Carried 15 | 5 5 13 15 15 8 Class Distribution -------------------- 91% | Mutant 5% | Scavenger-Mutant Dominant Class ---------------- Mutant | -10/Materials Mutant | -10/Subcaves Mutant | -7/Recycling Mutant | -7/Scraptown Scavenger-Mutant | -5/Factory Resources | -11 -10 -10 -7 -7 -5 ----------- Run | Yrd Mat Sub Rec Scr Fac Matter Collected 868 | 200 . 317 60 80 211 Remotely . | . . . . . . Salvage Created 1628 | . . 357 663 . 608 Parts 85 | . . 25 27 . 33 Haulers Intercepted . | . . . . . . Recyclers Shooed 2 | . . . 2 . . Parts Field Recycled . | . . . . . . Retrieved Matter . | . . . . . . Parts Self-Destructed 16 | . . 16 . . . Prevented . | . . . . . . Kills | -11 -10 -10 -7 -7 -5 ------- Run | Yrd Mat Sub Rec Scr Fac Combat Hostiles Destroyed 25 | . . 10 3 . 12 Melee 6 | . . . 1 . 5 Guns 4 | . . 2 . . 2 Cannons 10 | . . 8 2 . . AOE 5 | . . . . . 5 Classes Destroyed 10 | . . 3 2 . 5 Worker 4 | . . . . . 4 Tunneler 2 | . . . . . 2 Recycler 6 | . . . 6 . . Turret 2 | . . 2 . . . Swarmer 9 | . . 4 1 . 4 Grunt 4 | . . . 2 . 2 Sentry 2 | . . . . . 2 Hunter 2 | . . . . . 2 Programmer 2 | . . . . . 2 Subdweller 6 | . . 6 . . . Best Kill Streak 11 | . . 4 8 . 11 Combat Bots Only 8 | . . 4 3 . 8 Max Kills in Single Turn 5 | . . 1 1 . 5 Gunslinging . | . . . . . . Exploded 4 | . . . . . 4 Melee 1 | . . . 1 . 1 Uniques/NPCs Destroyed . | . . . . . . Combat | -11 -10 -10 -7 -7 -5 -------- Run | Yrd Mat Sub Rec Scr Fac Hostile Shots Fired 395 | . . 117 4 . 274 Missed 123 | . . 46 3 . 74 Hits 272 | . . 71 1 . 200 Projectile 272 | . . 71 1 . 200 Critical Strikes 12 | . . . . . 12 Damage Taken 4793 | . . 795 14 . 3984 Core 1161 | . . 141 14 . 1006 Absorbed by Shields . | . . . . . . Core Remaining (%) 69 | 100 . . . 38 . Volleys Fired 96 | . . 56 6 . 34 Largest 2 | . . 2 1 . 2 Hottest 160 | . . 160 80 . 109 Shots Fired 136 | . . 80 6 . 50 Gun 61 | . . 19 . . 42 Cannon 72 | . . 61 6 . 5 Launcher 1 | . . . . . 1 Special 2 | . . . . . 2 Kinetic 87 | . . 50 . . 37 Thermal 46 | . . 30 6 . 10 Explosive 1 | . . . . . 1 Electromagnetic . | . . . . . . Robot Hit Streak 15 | . . 15 7 . 8 Robot Miss Streak 3 | . . 2 1 . 3 Penetration Max 1 | . . . . . 1 Secondary Targets 1 | . . . . . 1 Max Gunslinging Chain 1 | . . . . . 1 Shots Hit Robots 114 | . . 41 14 . 59 Core Hits 51 | . . 17 9 . 25 Critical Kills 1 | . . . 1 . . Critical Parts Destroyed 1 | . . . . . 1 Critical Strikes 12 | . . 3 2 . 7 Burn 1 | . . . . . 1 Meltdown 1 | . . . 1 . . Destroy 1 | . . . . . 1 Blast 3 | . . 3 . . . Sever 6 | . . . 1 . 5 Melee Attacks 50 | . . . 11 . 39 Impact . | . . . . . . Slashing 50 | . . . 11 . 39 Piercing . | . . . . . . Sneak Attacks 6 | . . . 4 . 2 Combat Hostiles 1 | . . . 1 . . Follow-up Attacks . | . . . . . . Damage Inflicted 4294 | . . 902 654 . 2738 Guns 845 | . . 159 . . 686 Cannons 996 | . . 743 128 . 125 Explosions 874 | . . . . . 874 Melee 1570 | . . . 517 . 1053 Ramming 9 | . . . 9 . . Kinetic 1022 | . . 453 . . 569 Thermal 819 | . . 449 128 . 242 Explosive 874 | . . . . . 874 Electromagnetic . | . . . . . . Impact . | . . . . . . Slashing 1570 | . . . 517 . 1053 Piercing . | . . . . . . Highest Corruption 7 | . . . . . 7 Average Corruption 4 | . . . . . 4 Corruption Purged . | . . . . . . Corruption Blocked . | . . . . . . Effects 5 | . . . . . 5 Message Errors 2 | . . . . . 2 Matter Fused 2 | . . . . . 2 Data Loss (minor) 1 | . . . . . 1 Overload Shots . | . . . . . . Overflow Damage 210 | . . 8 7 . 195 Projectiles 15 | . . 8 7 . . Explosions 58 | . . . . . 58 Melee 137 | . . . . . 137 Knockbacks 3 | . . 3 . . . Impact . | . . . . . . Kinetic 2 | . . 2 . . . Secondary 1 | . . 1 . . . Self-Inflicted Damage . | . . . . . . Shots . | . . . . . . Rammed . | . . . . . . Targets Rammed 1 | . . . 1 . . Kicked . | . . . . . . Crushed 1 | . . . 1 . . Highest Temperature 195 | . . 195 115 . 60 Average Temperature 56 | . . 86 57 . 19 Received Heat Transfer 981 | . . 342 . . 639 Siege Activations . | . . . . . . Martial Activations . | . . . . . . Shielding Activations . | . . . . . . Robots Disrupted . | . . . . . . Combat Hostiles . | . . . . . . Robots Corrupted . | . . . . . . Combat Hostiles . | . . . . . . Parts Fried . | . . . . . . Impact Corruptions . | . . . . . . Robots Melted 1 | . . . 1 . . Combat Hostiles . | . . . . . . Parts Melted 4 | . . . 1 . 3 Heat Transferred 1249 | . . 592 185 . 472 Parts Sabotaged . | . . . . . . Parts Stolen . | . . . . . . Parts Stripped . | . . . . . . Power Chain Reactions . | . . . . . . Alert | -11 -10 -10 -7 -7 -5 ------- Run | Yrd Mat Sub Rec Scr Fac Maximum Alert Level 1 | . . . . . 1 Low Security (%) 92 | 100 100 . 100 . 81 Level 1 7 | . . . . . 18 Level 2 . | . . . . . . Level 3 . | . . . . . . Level 4 . | . . . . . . Level 5 . | . . . . . . High Security . | . . . . . . Max Security . | . . . . . . Peak Influence 390 | . . . 144 . 390 Initial 64 | . . . 64 . . Average 65 | . . . 85 . 72 Influence Increases 1108 | . . 210 252 . 646 Destroy 0b10 Robot/C 420 | . . 120 60 . 240 Destroy 0b10 Robot/NC 70 | . . . 40 . 30 Destroy Leader 50 | . . . . . 50 Trap Triggered on 0b10 10 | . . . . . 10 Select Force Hacks 150 | . . . 150 . . Disable Machine 240 | . . . . . 240 Destroy Structure 78 | . . . 2 . 76 Lose Combat Pursuer 90 | . . 90 . . . Influence Decreases 778 | . . 76 332 54 316 Entered New Map 124 | . . . 70 54 . Time Decay 455 | . . 36 262 . 157 Lost Part 199 | . . 40 . . 159 Squads Dispatched 2 | . . . . . 2 Investigation 1 | . . . . . 1 Extermination 1 | . . . . . 1 Reinforcement . | . . . . . . Assault . | . . . . . . Garrison . | . . . . . . Intercept . | . . . . . . Searches Triggered . | . . . . . . Construction Impeded . | . . . . . . Haulers Reinforced . | . . . . . . Active Scanning Responses . | . . . . . . Cargo Convoy Interrupts . | . . . . . . Stealth | -11 -10 -10 -7 -7 -5 --------- Run | Yrd Mat Sub Rec Scr Fac Distress Signals . | . . . . . . Communications Jammed . | . . . . . . Distress Signals . | . . . . . . Times Spotted 30 | . . 16 3 . 11 Peak Tracking Total 6 | . . 6 2 . 5 Tactical Retreats 2 | . . 2 . . . Traps | -11 -10 -10 -7 -7 -5 ------- Run | Yrd Mat Sub Rec Scr Fac Traps Triggered . | . . . . . . Indirectly . | . . . . . . Trap Hack Attempts . | . . . . . . Triggered . | . . . . . . Disarmed . | . . . . . . Reprogrammed . | . . . . . . Reused 1 | . . . . . 1 Traps Extracted . | . . . . . . Installed 1 | . . . . . 1 Triggered 1 | . . . . . 1 Most Traps Carried 3 | . . 2 2 3 3 Machines | -11 -10 -10 -7 -7 -5 ---------- Run | Yrd Mat Sub Rec Scr Fac Machines Disabled 18 | . . 2 . . 16 Max in Single Turn 6 | . . 1 . . 6 Machines Repaired . | . . . . . . Machines Dismantled . | . . . . . . Machines Sabotaged . | . . . . . . Overloaded Fab Kills . | . . . . . . Hacking | -11 -10 -10 -7 -7 -5 --------- Run | Yrd Mat Sub Rec Scr Fac Machines Accessed 11 | . 1 2 6 1 1 Terminals 2 | . 1 . 1 . . Fabricators . | . . . . . . Repair Stations . | . . . . . . Recycling Units 6 | . . . 5 . 1 Scanalyzers . | . . . . . . Garrison Access . | . . . . . . Total Hacks 20 | . 1 5 8 1 5 Successful 12 | . . 5 5 1 1 Failed 8 | . 1 . 3 . 4 Catastrophic 2 | . 1 . . . 1 Database Lockouts . | . . . . . . Manual 12 | . . . 7 . 5 Terminals 2 | . 1 . 1 . . Fabricators . | . . . . . . Repair Stations . | . . . . . . Recycling Units 12 | . . . 7 . 5 Scanalyzers . | . . . . . . Garrison Access . | . . . . . . Terminal Hacks 6 | . . 5 . 1 . Record 4 | . . 4 . . . Proto ID Catalog 2 | . . 1 . 1 . Fabricator Hacks . | . . . . . . Repair Station Hacks . | . . . . . . Recycling Unit Hacks . | . . . . . . Scanalyzer . | . . . . . . Garrison Access Hacks . | . . . . . . Unauthorized Hacks 6 | . . . 5 . 1 Terminals . | . . . . . . Fabricators . | . . . . . . Repair Stations . | . . . . . . Recycling Units 6 | . . . 5 . 1 Tunnel 5 | . . . 5 . . Fedlink 1 | . . . . . 1 Scanalyzers . | . . . . . . Garrison Access . | . . . . . . Data Cores Recovered . | . . . . . . Used . | . . . . . . Hacking Detections 4 | . 1 . 2 . 1 Full Trace Events . | . . . . . . Feedback Events . | . . . . . . Feedback Blocked . | . . . . . . Robot Schematics Acquired . | . . . . . . Robots Built . | . . . . . . Authchips . | . . . . . . Time . | . . . . . . Total Robot Build Rating . | . . . . . . Part Schematics Acquired . | . . . . . . Parts Built . | . . . . . . Authchips . | . . . . . . Time . | . . . . . . Total Part Build Rating . | . . . . . . Parts Repaired . | . . . . . . Time . | . . . . . . Parts Recycled . | . . . . . . Recycled Matter . | . . . . . . Retrieved Matter . | . . . . . . Retrieved Components . | . . . . . . Parts Scanalyzed . | . . . . . . Part Schematics Acquired . | . . . . . . Parts Damaged . | . . . . . . Bothacking | -11 -10 -10 -7 -7 -5 ------------ Run | Yrd Mat Sub Rec Scr Fac Used RIF Installer . | . . . . . . Robots Hacked . | . . . . . . Non-combat . | . . . . . . Combat . | . . . . . . Robot Hacks Applied . | . . . . . . Relay Couplers Released . | . . . . . . Fabnet Peak Effective % . | . . . . . . Robots Rewired . | . . . . . . Allies Hacked . | . . . . . . Hacks Repelled . | . . . . . . Allies | -11 -10 -10 -7 -7 -5 -------- Run | Yrd Mat Sub Rec Scr Fac Total Allies . | . . . . . . Largest Group . | . . . . . . Highest-Rated Group . | . . . . . . Highest-Rated Ally . | . . . . . . Total Orders . | . . . . . . Ally Attacks . | . . . . . . Total Damage . | . . . . . . Kills . | . . . . . . Allies Corrupted . | . . . . . . Allies Melted . | . . . . . . Intel | -11 -10 -10 -7 -7 -5 ------- Run | Yrd Mat Sub Rec Scr Fac Active Infowar (turns) 155 | . . . . . 155 Jamming 155 | . . . . . 155 ECM 11 | . . . . . 11 Robot Analysis Total . | . . . . . . Derelict Logs Recovered 5 | . . 2 . 3 . Drone Launches . | . . . . . . Drone Recoveries . | . . . . . . Exploration | -11 -10 -10 -7 -7 -5 ------------- Run | Yrd Mat Sub Rec Scr Fac Turns Passed 4687 | 3 232 1596 573 1681 602 Spaces Moved 2973 | 1 110 901 383 1317 261 Core 11 | . . . . . 11 Treads 181 | . . 43 137 . 1 Legs 907 | 1 110 321 . 249 226 Wheels 1874 | . . 537 246 1068 23 Hover . | . . . . . . Flight . | . . . . . . Fastest Speed 95 | 120 120 120 110 115 95 Average Speed 137 | 120 177 157 136 122 135 Slowest Speed 500 | 120 190 260 260 200 500 Overloaded Moves . | . . . . . . Propulsion Burnouts . | . . . . . . Robots Hopped . | . . . . . . Potential Cave-ins . | . . . . . . Cave-ins Triggered . | . . . . . . Exploration Rate (%) 37 | 2 29 48 52 88 8 Regions Visited 5 Branch Regions 3 Pre-discovered Areas 6 | . . . 5 1 . Known Exits Taken . | . . . . . . Unknown Exits Taken 5 | 1 1 1 1 1 . Scrap Searched 18 | . . 13 . 5 . Spaces Dug 10 | . . 3 1 . 6 Terrain Destroyed 56 | . . 7 2 . 47 Melee 7 | . . . 1 . 6 Projectile 8 | . . 7 1 . . AOE 41 | . . . . . 41 Terrain Rammed . | . . . . . . Walls Destroyed . | . . . . . . Machines Disabled . | . . . . . . Actions | -11 -10 -10 -7 -7 -5 --------- Run | Yrd Mat Sub Rec Scr Fac Total 3353 | 3 147 1003 414 1394 392 Wait 99 | . 36 8 1 40 14 Move 2968 | . 109 900 382 1316 261 Hop . | . . . . . . Pick Up 45 | . . 17 4 16 8 Fast Attach 21 | . 1 4 2 1 13 Attach 22 | 1 . 3 1 3 14 Detach 2 | . . . . . 2 Swap 13 | . . 3 3 4 3 Drop 35 | 2 1 12 3 14 3 Fire 96 | . . 56 6 . 34 Melee 50 | . . . 11 . 39 Ram . | . . . . . . Kick . | . . . . . . Crush 1 | . . . 1 . . Escape Stasis . | . . . . . . Rewire . | . . . . . . Trap 1 | . . . . . 1 Miscellaneous . | . . . . . . Route ------- -11/Scrapyard -10/Materials (discovered 2 exits: [*Min] / *Sub) -10/Subcaves (discovered 2 exits: [*Mat] / *Rec) -7/Recycling -7/Scraptown (discovered 2 exits: *Fac x2) -5/Factory History --------- Turn | Location | Event 4 | -11/Scrapyard | Discovered new exit (range 0) 4 | -11/Scrapyard | Entered Materials 96 | -10/Materials | Discovered new exit (range 7) 216 | -10/Materials | Discovered new exit (range 4) 236 | -10/Materials | Entered Subcaves 316 | -10/Subcaves | Build established: Mutant 324 | -10/Subcaves | Discovered new exit (range 15) 400 | -10/Subcaves | Visited 4L-MR0's lab 430 | -10/Subcaves | Found Cargo Legs 643 | -10/Subcaves | Shifting Twisted Machinery released Flamer 645 | -10/Subcaves | Shifting Twisted Machinery released Sub. Beam Cannon 804 | -10/Subcaves | Disturbed a concealed Subdweller 851 | -10/Subcaves | Learned Materials emergency access door positions 1328 | -10/Subcaves | Shifting Twisted Machinery released Riot Gun 1330 | -10/Subcaves | Shifting Twisted Machinery released Spk. Treads 1422 | -10/Subcaves | A swath of the cavern ceiling suddenly collapsed 1636 | -10/Subcaves | Learned location of 1 exit from Materials 1679 | -10/Subcaves | Discovered new exit (range 16) 1724 | -10/Subcaves | Lost 3 parts (1p1n1w) 1780 | -10/Subcaves | Visited Clippyterm 1788 | -10/Subcaves | Learned Factory garrison access intel 1831 | -10/Subcaves | Core integrity fell below 50% 1832 | -10/Subcaves | Entered Recycling 2377 | -7/Recycling | Scanned before Scraplab entrance 2394 | -7/Recycling | Entered Scraplab 2403 | -7/Recycling | Discovered new exit (range 3) 2405 | -7/Recycling | Entered Scraptown 2560 | -7/Scraptown | Visited Cyclists 2582 | -7/Scraptown | Visited SPCMW 2594 | -7/Scraptown | Visited Red Mages 2665 | -7/Scraptown | Visited Junk Repository 2732 | -7/Scraptown | Scanned Subdweller tech in exchange for log data 2737 | -7/Scraptown | Learned Factory terminal intel 2738 | -7/Scraptown | Learned location of Extension (-4) 2739 | -7/Scraptown | Learned location of 2 exits from Upper Caves 2751 | -7/Scraptown | Discovered new exit (range 11) 3113 | -7/Scraptown | Visited IN-MT5's Study 3137 | -7/Scraptown | Visited TADAMA 3165 | -7/Scraptown | Visited UFD Registry 3165 | -7/Scraptown | Registered with UFD as "Flashhacker" 3200 | -7/Scraptown | Visited Science Guys 3237 | -7/Scraptown | Visited Observation Area 3397 | -7/Scraptown | Visited Research Penetration Think Tank 3422 | -7/Scraptown | Visited Derelict Rescue Squad 3432 | -7/Scraptown | Found DRS Beacon 3454 | -7/Scraptown | Visited Scrap Suit Storage 3482 | -7/Scraptown | Visited A0-MCA Data Center 3489 | -7/Scraptown | Given a C+ rating by A0-MCA 3494 | -7/Scraptown | Found A0-MCA's Component Scanner 3518 | -7/Scraptown | Visited DA-N13 Charitable Foundation 3523 | -7/Scraptown | Found DCF Scrap (26 items) 3551 | -7/Scraptown | Visited LU-1G1's Boring Crew 3652 | -7/Scraptown | Attached Cargo Legs, gained temporary slots: Utility x2 4022 | -7/Scraptown | Met Optimus 4022 | -7/Scraptown | Accepted into 0bPrime 4083 | -7/Scraptown | Discovered new exit (range 3) 4086 | -7/Scraptown | Entered Factory 4086 | -5/Factory | Evolved 10 slots: Propulsion x4, Utility x6 4087 | -5/Factory | Loaded intel: 25 terminal locations 4088 | -5/Factory | Loaded intel: 4 garrison access locations 4288 | -5/Factory | Lost 7 parts (1p3u3w) 4391 | -5/Factory | Loaded intel: 8 recycling unit locations 4592 | -5/Factory | Core integrity fell below 50% 4628 | -5/Factory | Core integrity fell below 20% 4634 | -5/Factory | Destroyed 8 combat bots 4652 | -5/Factory | Lost 16 parts (1p5n4u6w) 4688 | -5/Factory | Destroyed by P-70 Sage with High-powered Shock Rifle Last Messages --------------- 04610_ K-01 Serf collects debris. 04613_ G-50 Soldier destroyed. 04614_ K-01 Serf collects debris. 04620_ CPS Tube destroyed. 04621_ Axe destroyed. 04622_ K-01 Serf collects debris. 04624_ FOZQ6 B,YYCM281LAO:|>HJ S 3%LQ, 04626_ K-01 Serf collects debris. 04628_ Acquired Wheel. 04629_ K-01 Serf collects debris. 04631_ Dropped Vortex Trap. 04632_ Installed Vortex Trap. 04633_ K-01 Serf collects debris. 04644_ System corrupted: Matter fused (-6). 04652_ Wheel destroyed. 04656_ ALERT: Security rotation in progress. 04660_ O-24 Administrator: "IFF HANDSHAKE FAILED. SECURING TERMINAL." 04676_ System corrupted: Matter fused (-10). 04682_ Repair Station disabled. 04682_ Backup Power III tumbles out of repair station. Map ----- +----------------------------------------------------+ | ?????????????????????????????????????????????????? | | ?????????????????????????????????????????????????? | | ?????????????????????????????????????????????????? | | ?????????????????????????????????????????????????? | | ?????????????????????????????????????????????????? | | ?????????????????????????????????????????????????? | | ?????????????????????????????????????????????????? | | ?????????????????????????????????????????????????? | | ?????????????????????????????????????????????????? | | ?????????????????????????????????????????????????? | | ???????????????????????????###???????????????????? | | ??????????????????????????? ? ???????????????? | | ??????????????????????????? #??????????????? | | ??????????????????????????? #??????????????? | | ??????????????????????????? #??????????????? | | ??????????????????????????? #??????????????? | | ??????????????????????????? #??????????????? | | ??????????????????????????+ #??????????????? | | ???????????????????######## #??????????????? | | ???????????????????? # #??????????????? | | ????????????????????"""" # #??????????????? | | ???????????????????""""" # #??????????????? | | ?????????????# """""" # #??????????????? | | ?????????????# """""" # #??????????????? | | ?????????????# p +??????????????? | | ?????????????# Y @# #??????????????? | | ?????????????# """ # #??????????????? | | ?????????????? "R # #??????????????? | | ?????????????? "" [ # #??????????????? | | ?????????????? ""* # #??????????????? | | ?????????????? # #??????????????? | | ??????????????############# #??????????????? | | ???????"""""""""""????????# #??????????????? | | ????????""""T""""?????????# #??????????????? | | ??????????????????????????# #??????????????? | | ??????????????????????????# #???"""????????? | | ??????????????????????????# #?? ?????????? | | ??????????????????????????# #?? ?????????? | | ??????????????????????????# #? """????????? | | ??T???????????????????????# #?= """"???????? | | ??????????????????????????# # ???????? | | ??????????????????????????# # ??????? | | ??????????????????????????# / ??????? | | ??????????????????????????#* # ??????? | | ??????????????????????????#^ ########???????? | | ??????????????????????????# ! #?? ??????? | | ??????"""???????????# ### # | #?? ??????? | | ??????"T"??"""?????# ! #?""""""""?????? | | ??????"?"??"T"?? # # ## % *!#? ?????? | | ???????????????? %%# """""""""????? | +----------------------------------------------------+ Best States ------------- Heat Dissipation 40 Coolant Potential 50 Energy Generation 19 Energy Capacity 315 Matter Stores 300 Matter Capacity 300 Sight Range 16 Terrain Scan Density 10 ECM Strength 2 Jamming Range 12 Armor Coverage 900 Phase Shifting 5 Evasion (%) 55 Targeting Accuracy 10 Launcher Accuracy 30 Recoil Reduction 2 Matter Filtering 30 Offensive Hacking 10 Defensive Hacking 11 Item Schematics ----------------- None Robot Schematics ------------------ None Fabricated ------------ Nothing Repaired ---------- Nothing Alien Tech Used ----------------- None Achievements -------------- None Challenges ------------ None Game ------ Seed ChromaticWarpPick Manual? 0 Play Time 00:40:10 Cumulative 526.2 hours Start 2025.06.06 @ 21:39:18 End 2025.06.06 @ 22:24:12 Sessions 1 Manual Loads 0 Difficulty Rogue Special Mode None Game No. 587 Rogue 587 Adventurer 0 Explorer 0 Win Type - Total 16 Types 10/0/5/1/0/0/0/0/0/0 Lore% 83 Gallery% 82 Achievement% 82 Wizard Run 0 Options --------- Layout 0 ASCII 0 Keyboard 0 Movement Numpad Keybinds 0 Fullscreen 1 Font 18/SmallcapsGlow Map View 76x50 Zoom Use 0% Tactical HUD 1 Map Filters NONE Filters NONE Steam 1 RUN: 51391881-6bd6-46e6-9299-4a97ddb420b4